fUSD/lending_fUSD_20250113
["ID","MTS","AMOUNT","RATE_DAILY","PERIOD"]
[348713035,1736743839242,-505.587495,9.997e-05,2]
[348713036,1736743839252,-500.0,9.997e-05,2]
[348713037,1736743839261,-500.0,9.997e-05,2]
[348713038,1736743839270,-504.8246596,9.997e-05,2]
[348713039,1736743839279,-500.0,9.997e-05,2]
[348713040,1736743839288,-504.88920197,9.997e-05,2]
[348713041,1736743839298,-500.0,9.997e-05,2]
[348713042,1736743839307,-800.5,9.997e-05,2]
[348713043,1736743839316,-821.6,9.997e-05,2]
[348713044,1736743839325,-505.5376955,9.997e-05,2]
[348713045,1736743839334,-508.84964815,9.997e-05,2]
[348713046,1736743839343,-503.9138594,9.997e-05,2]
[348713047,1736743839352,-507.97936771,9.997e-05,2]
[348713048,1736743839361,-500.0,9.997e-05,2]
[348713049,1736743839370,-500.0,9.997e-05,2]
[348713050,1736743839380,-500.0,9.997e-05,2]
[348713051,1736743839389,-501.11474663,9.997e-05,2]
[348713052,1736743839399,-501.62786678,9.997e-05,2]
[348713053,1736743839408,-500.0,9.997e-05,2]
[348713054,1736743839418,-511.50614198,9.997e-05,2]
[348713055,1736743839427,-503.04784805,9.997e-05,2]
[348713056,1736743839436,-500.0,9.997e-05,2]
[348713057,1736743839445,-505.04635782,9.997e-05,2]
[348713058,1736743839454,-533.40259271,9.997e-05,2]
[348713059,1736743839463,-507.30814906,9.997e-05,2]
[348713060,1736743839473,-509.22712184,9.997e-05,2]
[348713061,1736743839482,-522.44301276,9.997e-05,2]
[348713062,1736743839492,-501.89376958,9.997e-05,2]
[348713063,1736743839501,-500.0,9.997e-05,2]
[348713064,1736743839511,-500.0,9.997e-05,2]
[348713065,1736743839521,-710.24,9.997e-05,2]
[348713066,1736743839530,-513.50189739,9.997e-05,2]
[348713067,1736743839540,-710.24,9.997e-05,2]
[348713068,1736743839550,-498.302,9.997e-05,2]
[348713069,1736743839560,-500.0,9.997e-05,2]
[348713070,1736743839569,-506.54302831,9.997e-05,2]
[348713071,1736743839579,-500.0,9.997e-05,2]
[348713072,1736743839588,-513.47198108,9.997e-05,2]
[348713073,1736743839598,-500.0,9.997e-05,2]
[348713074,1736743839607,-500.0,9.997e-05,2]
[348713075,1736743839616,-501.48059,9.997e-05,2]
[348713076,1736743839626,-500.0,9.997e-05,2]
[348713077,1736743839636,-514.25128591,9.997e-05,2]
[348713078,1736743839646,-506.25381714,9.997e-05,2]
[348713079,1736743839656,-501.94166573,9.997e-05,2]
[348713080,1736743839666,-500.0,9.997e-05,2]
[348713081,1736743839675,-297.5535657,9.997e-05,2]
[348713082,1736743839686,-511.78726451,9.997e-05,2]
[348713083,1736743839696,-502.92104817,9.997e-05,2]
[348713084,1736743839705,-501.86734702,9.997e-05,2]
[348713085,1736743839717,-501.96553808,9.997e-05,2]
[348713086,1736743839726,-500.0,9.997e-05,2]
[348713087,1736743839735,-502.99186117,9.998e-05,2]
[348713088,1736743839745,-209.45940181,9.998e-05,2]
[348713089,1736743839754,-501.5321157,9.998e-05,2]
[348713090,1736743839763,-500.88216737,9.998e-05,2]
[348713091,1736743839772,-500.15725439,9.998e-05,2]
[348713092,1736743839781,-503.37953518,9.998e-05,2]
[348713093,1736743839794,-500.65315437,9.998e-05,2]
[348713094,1736743839803,-302.24167041,9.998e-05,2]
[348713095,1736743839812,-1916.95,9.998e-05,2]
[348713096,1736743839821,-505.46530885,9.998e-05,2]
[348713097,1736743839831,-510.35913619,9.998e-05,2]
[348713098,1736743839840,-500.0,9.998e-05,2]
[348713099,1736743839849,-500.0,9.998e-05,2]
[348713100,1736743839858,-509.67441483,9.998e-05,2]
[348713101,1736743839868,-2148.74,9.998e-05,2]
[348713102,1736743839878,-514.95203375,9.998e-05,2]
[348713103,1736743839888,-503.78646012,9.998e-05,2]
[348713104,1736743839897,-507.66952669,9.998e-05,2]
[348713105,1736743839906,-512.30197179,9.998e-05,2]
[348713106,1736743839915,-500.0,9.998e-05,2]
[348713107,1736743839924,-504.5609027,9.998e-05,2]
[348713108,1736743839934,-514.10187033,9.998e-05,2]
[348713109,1736743839944,-500.8680478,9.998e-05,2]
[348713110,1736743839953,-513.42438065,9.998e-05,2]
[348713111,1736743839963,-514.36221316,9.998e-05,2]
[348713112,1736743839972,-504.58204553,9.998e-05,2]
[348713113,1736743839982,-501.93219963,9.998e-05,2]
[348713114,1736743839991,-500.0,9.998e-05,2]
[348713115,1736743840001,-500.0,9.998e-05,2]
[348713116,1736743840010,-514.2098893,9.998e-05,2]
[348713117,1736743840019,-502.17225761,9.998e-05,2]
[348713118,1736743840028,-227.71608528,9.998e-05,2]
[348713119,1736743840038,-500.0,9.998e-05,2]
[348713120,1736743840047,-500.0,9.998e-05,2]
[348713121,1736743840057,-500.0,9.998e-05,2]
[348713122,1736743840066,-509.46939857,9.998e-05,2]
[348713123,1736743840075,-507.2559021,9.998e-05,2]
[348713124,1736743840085,-507.36712361,9.998e-05,2]
[348713125,1736743840094,-507.64157199,9.998e-05,2]
[348713126,1736743840103,-507.53313384,9.998e-05,2]
[348713127,1736743840112,-508.85630814,9.998e-05,2]
[348713128,1736743840121,-512.67774885,9.998e-05,2]
[348713129,1736743840130,-500.0,9.998e-05,2]
[348713130,1736743840139,-518.54632479,9.998e-05,2]
[348713131,1736743840148,-500.0,9.998e-05,2]
[348713132,1736743840158,-504.48393882,9.998e-05,2]
[348713133,1736743840167,-503.33210537,9.998e-05,2]
[348713134,1736743840176,-500.0,9.998e-05,2]
[348713135,1736743840185,-503.18069791,9.998e-05,2]
[348713136,1736743840195,-500.0,9.998e-05,2]
[348713137,1736743840204,-502.51550766,9.998e-05,2]
[348713138,1736743840214,-507.42388553,9.998e-05,2]
[348713139,1736743840223,-504.56772849,9.998e-05,2]
[348713140,1736743840233,-502.95723767,9.998e-05,2]
[348713141,1736743840243,-512.33033675,9.998e-05,2]
[348713142,1736743840253,-517.0953231,9.998e-05,2]
[348713143,1736743840262,-504.17317686,9.998e-05,2]
[348713145,1736743840271,-1234.83,9.998e-05,2]
[348713147,1736743840281,-506.48154785,9.998e-05,2]
[348713149,1736743840290,-500.0,9.998e-05,2]
[348713151,1736743840300,-536.22183919,9.998e-05,2]
[348713152,1736743840309,-512.65967616,9.998e-05,2]
[348713154,1736743840318,-500.0,9.998e-05,2]
[348713156,1736743840327,-506.28026444,9.998e-05,2]
[348713159,1736743840337,-500.0,9.998e-05,2]
[348713161,1736743840347,-508.73551919,9.998e-05,2]
[348713162,1736743840356,-500.0,9.998e-05,2]
[348713164,1736743840365,-500.0,9.998e-05,2]
[348713166,1736743840375,-507.68705644,9.998e-05,2]
[348713168,1736743840385,-500.0,9.998e-05,2]
[348713170,1736743840395,-507.32995014,9.998e-05,2]
[348713172,1736743840404,-502.75139085,9.998e-05,2]
[348713174,1736743840413,-500.0,9.998e-05,2]
[348713177,1736743840423,-1372.65,9.998e-05,2]
[348713179,1736743840433,-502.96712559,9.998e-05,2]
[348713181,1736743840443,-500.0,9.998e-05,2]
[348713183,1736743840452,-500.0,9.998e-05,2]
[348713184,1736743840461,-501.91653387,9.998e-05,2]
[348713187,1736743840471,-511.49065013,9.998e-05,2]
[348713189,1736743840480,-500.0,9.998e-05,2]
[348713190,1736743840489,-506.03841315,9.998e-05,2]
[348713193,1736743840499,-500.0,9.998e-05,2]
[348713194,1736743840508,-507.31740979,9.998e-05,2]
[348713196,1736743840518,-505.17729436,9.998e-05,2]
[348713198,1736743840527,-500.0,9.998e-05,2]
[348713200,1736743840537,-502.84024744,9.998e-05,2]
[348713202,1736743840545,-509.04524758,9.998e-05,2]
[348713204,1736743840555,-428.52597525,9.998e-05,2]
[348713206,1736743840564,-507.28355779,9.998e-05,2]
[348713208,1736743840574,-511.57550406,9.998e-05,2]
[348713210,1736743840583,-503.10977631,9.998e-05,2]
[348713229,1736743840646,-504.55149892,9.998e-05,2]
[348713231,1736743840778,-459.50789066,9.998e-05,2]
[348713232,1736743840789,-500.0,9.998e-05,2]
[348713233,1736743840798,-500.0,9.998e-05,2]
[348713234,1736743840807,-500.7578383,9.998e-05,2]
[348713235,1736743840816,-477.44811933,9.998e-05,2]
[348713236,1736743840826,-505.14539709,9.998e-05,2]
[348713237,1736743840835,-504.87586073,9.998e-05,2]
[348713238,1736743840844,-223.6156992,9.998e-05,2]
[348713239,1736743840853,-500.86035419,9.998e-05,2]
[348713240,1736743840862,-500.0,9.998e-05,2]
[348713241,1736743840871,-500.0,9.998e-05,2]
[348713243,1736743840882,-508.79332798,9.998e-05,2]
[348713245,1736743840891,-500.0,9.998e-05,2]
[348713247,1736743840901,-500.0,9.998e-05,2]
[348713249,1736743840911,-501.27359448,9.998e-05,2]
[348713251,1736743840920,-605.46945418,9.998e-05,2]
[348713253,1736743840929,-502.20868108,9.998e-05,2]
[348713255,1736743840938,-500.0,9.998e-05,2]
[348713257,1736743840947,-626.72443006,9.998e-05,2]
[348713259,1736743840956,-344.49135593,9.998e-05,2]
[348713261,1736743840965,-504.44033227,9.998e-05,2]
[348713262,1736743840975,-504.20489623,9.998e-05,2]
[348713265,1736743840984,-502.15929692,9.998e-05,2]
[348713266,1736743840993,-500.0,9.998e-05,2]
[348713269,1736743841002,-581.0183359,9.998e-05,2]
[348713270,1736743841012,-500.0,9.998e-05,2]
[348713273,1736743841021,-500.0,9.998e-05,2]
[348713275,1736743841031,-500.0,9.998e-05,2]
[348713276,1736743841040,-500.0,9.998e-05,2]
[348713278,1736743841049,-500.0,9.998e-05,2]
[348713280,1736743841059,-500.0,9.998e-05,2]
[348713282,1736743841068,-501.54527292,9.998e-05,2]
[348713285,1736743841078,-500.0,9.998e-05,2]
[348713286,1736743841087,-500.0,9.998e-05,2]
[348713289,1736743841098,-500.0,9.998e-05,2]
[348713291,1736743841108,-500.0,9.998e-05,2]
[348713293,1736743841117,-505.14124422,9.998e-05,2]
[348713295,1736743841126,-504.75877877,9.998e-05,2]
[348713296,1736743841135,-501.72105384,9.998e-05,2]
[348713299,1736743841145,-502.76088552,9.998e-05,2]
[348713301,1736743841154,-502.18317858,9.998e-05,2]
[348713303,1736743841163,-500.0,9.998e-05,2]
[348713305,1736743841173,-501.50035363,9.998e-05,2]
[348713307,1736743841183,-501.87933308,9.998e-05,2]
[348713309,1736743841192,-500.0,9.998e-05,2]
[348713311,1736743841202,-500.0,9.998e-05,2]
[348713313,1736743841212,-500.0,9.998e-05,2]
[348713315,1736743841221,-500.0,9.998e-05,2]
[348713317,1736743841231,-501.74102189,9.998e-05,2]
[348713319,1736743841241,-503.09637272,9.998e-05,2]
[348713321,1736743841250,-503.5296091,9.998e-05,2]
[348713323,1736743841259,-501.62509503,9.998e-05,2]
[348713325,1736743841269,-541.58144163,9.998e-05,2]
[348713326,1736743841278,-500.0,9.998e-05,2]
[348713327,1736743841287,-506.02535326,9.998e-05,2]
[348713328,1736743841297,-1130.65,9.998e-05,2]
[348713329,1736743841306,-503.72050867,9.998e-05,2]
[348713330,1736743841315,-501.30072302,9.998e-05,2]
[348713331,1736743841324,-501.50911358,9.998e-05,2]
[348713332,1736743841334,-501.93934309,9.998e-05,2]
[348713333,1736743841343,-500.0,9.998e-05,2]
[348713334,1736743841352,-502.00402069,9.998e-05,2]
[348713335,1736743841361,-501.649893,9.998e-05,2]
[348713336,1736743841371,-500.0,9.998e-05,2]
[348713337,1736743841380,-514.03164987,9.998e-05,2]
[348713338,1736743841389,-500.0,9.998e-05,2]
[348713339,1736743841399,-500.0,9.998e-05,2]
[348713340,1736743841408,-508.39915128,9.998e-05,2]
[348713341,1736743841417,-505.55109462,9.998e-05,2]
[348713342,1736743841427,-500.0,9.998e-05,2]
[348713343,1736743841437,-501.59604013,9.998e-05,2]
[348713344,1736743841446,-600.52547341,9.998e-05,2]
[348713345,1736743841456,-500.0,9.998e-05,2]
[348713346,1736743841465,-500.0,9.998e-05,2]
[348713347,1736743841475,-639.66,9.998e-05,2]
[348713348,1736743841485,-513.56143787,9.998e-05,2]
[348713349,1736743841494,-500.0,9.998e-05,2]
[348713350,1736743841504,-500.0,9.998e-05,2]
[348713351,1736743841513,-500.0,9.998e-05,2]
[348713352,1736743841522,-501.65981154,9.998e-05,2]
[348713353,1736743841532,-500.0,9.998e-05,2]
[348713354,1736743841541,-500.0,9.998e-05,2]
[348713355,1736743841550,-502.48,9.998e-05,2]
[348713356,1736743841559,-507.24218465,9.998e-05,2]
[348713357,1736743841569,-500.0,9.998e-05,2]
[348713358,1736743841578,-565.18972652,9.998e-05,2]
[348713359,1736743841587,-500.0,9.998e-05,2]
[348713360,1736743841597,-504.48072907,9.998e-05,2]
[348713361,1736743841606,-507.50268954,9.998e-05,2]
[348713362,1736743841616,-515.74137141,9.998e-05,2]
[348713363,1736743841625,-542.48,9.998e-05,2]
[348713364,1736743841635,-523.00532176,9.998e-05,2]
[348713365,1736743841644,-516.26221837,9.998e-05,2]
[348713366,1736743841654,-500.0,9.998e-05,2]
[348713367,1736743841663,-511.21533814,9.998e-05,2]
[348713368,1736743841673,-500.0,9.998e-05,2]
[348713369,1736743841682,-500.0,9.998e-05,2]
[348713370,1736743841691,-405.07,9.998e-05,2]
[348713371,1736743841700,-500.0,9.998e-05,2]
[348713372,1736743841710,-280.36092465,9.998e-05,2]
[348713373,1736743841719,-505.63935452,9.998e-05,2]
[348713374,1736743841728,-500.0,9.998e-05,2]
[348713375,1736743841737,-504.55459701,9.998e-05,2]
[348713376,1736743841746,-670.9,9.998e-05,2]
[348713377,1736743841755,-300.0,9.998e-05,2]
[348713378,1736743841765,-500.0,9.998e-05,2]
[348713379,1736743841774,-500.0,9.998e-05,2]
[348713380,1736743841786,-502.27977132,9.998e-05,2]
[348713381,1736743841797,-501.11861816,9.998e-05,2]
[348713382,1736743841806,-500.0,9.998e-05,2]
[348713383,1736743841815,-500.0,9.998e-05,2]
[348713384,1736743841824,-506.25676242,9.998e-05,2]
[348713385,1736743841834,-514.06932465,9.998e-05,2]
[348713386,1736743841843,-507.11896708,9.998e-05,2]
[348713387,1736743841852,-501.07641967,9.998e-05,2]
[348713388,1736743841863,-502.64103216,9.998e-05,2]
[348713389,1736743841872,-501.0722265,9.998e-05,2]
[348713390,1736743841882,-500.0,9.998e-05,2]
[348713391,1736743841891,-500.91676258,9.998e-05,2]
[348713392,1736743841901,-507.38829935,9.998e-05,2]
[348713393,1736743841911,-500.0,9.998e-05,2]
[348713394,1736743841922,-506.41436745,9.998e-05,2]
[348713395,1736743841933,-500.0,9.998e-05,2]
[348713396,1736743841942,-500.0,9.998e-05,2]
[348713397,1736743841952,-500.0,9.998e-05,2]
[348713398,1736743841961,-508.66335851,9.998e-05,2]
[348713399,1736743841970,-520.25788274,9.998e-05,2]
[348713400,1736743841979,-1206.05,9.998e-05,2]
[348713401,1736743841988,-500.0,9.998e-05,2]
[348713402,1736743841997,-525.519233,9.998e-05,2]
[348713403,1736743842007,-505.05389822,9.998e-05,2]
[348713404,1736743842017,-519.17547697,9.998e-05,2]
[348713405,1736743842026,-500.0,9.998e-05,2]
[348713406,1736743842036,-505.85252167,9.998e-05,2]
[348713407,1736743842047,-500.0,9.998e-05,2]
[348713408,1736743842057,-510.59476008,9.998e-05,2]
[348713409,1736743842066,-500.0,9.998e-05,2]
[348713410,1736743842076,-502.04079088,9.998e-05,2]
[348713411,1736743842086,-500.0,9.998e-05,2]
[348713412,1736743842095,-450.73836111,9.998e-05,2]
[348713413,1736743842105,-502.5603965,9.998e-05,2]
[348713414,1736743842114,-507.10619857,9.998e-05,2]
[348713415,1736743842123,-503.79562366,9.998e-05,2]
[348713416,1736743842133,-500.0,9.998e-05,2]
[348713417,1736743842142,-881.46,9.998e-05,2]
[348713418,1736743842152,-534.34,9.998e-05,2]
[348713419,1736743842161,-500.19677852,9.998e-05,2]
[348713420,1736743842171,-500.0,9.998e-05,2]
[348713421,1736743842180,-322.49183112,9.998e-05,2]
[348713422,1736743842189,-500.0,9.998e-05,2]
[348713423,1736743842199,-507.84343581,9.998e-05,2]
[348713424,1736743842209,-500.0,9.998e-05,2]
[348713425,1736743842218,-500.0,9.998e-05,2]
[348713426,1736743842229,-501.33213268,9.998e-05,2]
[348713427,1736743842239,-500.0,9.998e-05,2]
[348713428,1736743842248,-500.0,9.998e-05,2]
[348713429,1736743842258,-511.31033627,9.998e-05,2]
[348713430,1736743842267,-500.0,9.998e-05,2]
[348713431,1736743842276,-504.26027916,9.998e-05,2]
[348713432,1736743842285,-500.0,9.998e-05,2]
[348713433,1736743842295,-502.26578846,9.998e-05,2]
[348713434,1736743842304,-501.01381455,9.998e-05,2]
[348713435,1736743842313,-191.6771897,9.998e-05,2]
[348713436,1736743842323,-504.08475913,9.998e-05,2]
[348713437,1736743842332,-1146.35,9.998e-05,2]
[348713438,1736743842341,-191.48852917,9.998e-05,2]
[348713439,1736743842351,-500.0,9.998e-05,2]
[348713440,1736743842360,-500.0,9.998e-05,2]
[348713441,1736743842370,-309.30639086,9.998e-05,2]
[348713442,1736743842380,-500.59892972,9.998e-05,2]
[348713443,1736743842391,-500.0,9.998e-05,2]
[348713444,1736743842401,-500.0,9.998e-05,2]
[348713445,1736743842410,-500.0,9.998e-05,2]
[348713446,1736743842420,-505.45465083,9.998e-05,2]
[348713447,1736743842429,-500.0,9.998e-05,2]
[348713448,1736743842439,-500.0,9.998e-05,2]
[348713449,1736743842449,-524.87,9.998e-05,2]
[348713450,1736743842458,-500.0,9.998e-05,2]
[348713451,1736743842468,-506.58391247,9.998e-05,2]
[348713452,1736743842477,-500.0,9.998e-05,2]
[348713453,1736743842487,-500.0,9.998e-05,2]
[348713454,1736743842497,-500.0,9.998e-05,2]
[348713455,1736743842507,-500.0,9.998e-05,2]
[348713456,1736743842516,-500.0,9.998e-05,2]
[348713457,1736743842526,-556.71,9.998e-05,2]
[348713458,1736743842535,-501.74123412,9.998e-05,2]
[348713459,1736743842546,-500.0,9.998e-05,2]
[348713460,1736743842555,-500.0,9.998e-05,2]
[348713461,1736743842565,-500.0,9.998e-05,2]
[348713462,1736743842574,-842.49,9.998e-05,2]
[348713463,1736743842584,-500.0,9.998e-05,2]
[348713464,1736743842593,-500.0,9.998e-05,2]
[348713465,1736743842602,-500.0,9.998e-05,2]
[348713466,1736743842612,-500.0,9.998e-05,2]
[348713467,1736743842622,-500.0,9.998e-05,2]
[348713468,1736743842631,-500.0,9.998e-05,2]
[348713469,1736743842641,-500.0,9.998e-05,2]
[348713470,1736743842651,-500.0,9.998e-05,2]
[348713471,1736743842660,-508.97323927,9.998e-05,2]
[348713472,1736743842670,-153.64754505,9.998e-05,2]
[348713473,1736743842679,-503.51420098,9.998e-05,2]
[348713475,1736743842688,-572.9,9.998e-05,2]
[348713476,1736743842698,-510.10257132,9.998e-05,2]
[348713477,1736743842707,-500.0,9.998e-05,2]
[348713478,1736743842717,-504.28694224,9.998e-05,2]
[348713479,1736743842726,-2148.66,9.998e-05,2]
[348713480,1736743842736,-5039.84902446,9.998e-05,2]
[348713481,1736743842745,-500.0,9.998e-05,2]
[348713482,1736743842754,-500.0,9.998e-05,2]
[348713483,1736743842763,-511.5040241,9.998e-05,2]
[348713484,1736743842773,-500.0,9.998e-05,2]
[348713485,1736743842783,-504.95067561,9.998e-05,2]
[348713486,1736743842799,-500.0,9.998e-05,2]
[348713487,1736743842808,-506.62215267,9.998e-05,2]
[348713488,1736743842817,-500.0,9.998e-05,2]
[348713489,1736743842826,-916.72,9.998e-05,2]
[348713490,1736743842836,-550.21,9.998e-05,2]
[348713491,1736743842845,-500.0,9.998e-05,2]
[348713492,1736743842854,-500.0,9.998e-05,2]
[348713493,1736743842864,-500.0,9.998e-05,2]
[348713494,1736743842874,-561.5240863,9.998e-05,2]
[348713495,1736743842883,-500.0,9.998e-05,2]
[348713496,1736743842893,-492.4847969,9.998e-05,2]
[348713497,1736743842903,-501.61986024,9.998e-05,2]
[348713498,1736743842912,-505.756,9.998e-05,2]
[348713499,1736743842922,-500.0,9.998e-05,2]
[348713500,1736743842932,-500.0,9.998e-05,2]
[348713501,1736743842942,-1582.11,9.998e-05,2]
[348713502,1736743842951,-500.0,9.998e-05,2]
[348713503,1736743842961,-500.0,9.998e-05,2]
[348713504,1736743842971,-500.0,9.998e-05,2]
[348713505,1736743842981,-430.57281889,9.998e-05,2]
[348713506,1736743842992,-500.0,9.998e-05,2]
[348713507,1736743843001,-504.87828081,9.998e-05,2]
[348713508,1736743843010,-500.0,9.998e-05,2]
[348713509,1736743843019,-727.63,9.998e-05,2]
[348713510,1736743843028,-541.84,9.998e-05,2]
[348713511,1736743843037,-500.0,9.998e-05,2]
[348713512,1736743843046,-888.29,9.998e-05,2]
[348713513,1736743843054,-500.0,9.998e-05,2]
[348713514,1736743843064,-761.58,9.998e-05,2]
[348713515,1736743843072,-1466.32,9.998e-05,2]
[348713516,1736743843081,-628.6,9.998e-05,2]
[348713517,1736743843090,-1760.66,9.998e-05,2]
[348713518,1736743843101,-367.89434997,9.999e-05,2]
[348713519,1736743843110,-500.0,9.999e-05,2]
[348713520,1736743843119,-500.0,9.999e-05,2]
[348713521,1736743843128,-500.0,9.999e-05,2]
[348713522,1736743843138,-500.0,9.999e-05,2]
[348713523,1736743843147,-500.0,9.999e-05,2]
[348713524,1736743843158,-500.0,9.999e-05,2]
[348713525,1736743843168,-500.0,9.999e-05,2]
[348713526,1736743843178,-500.0,9.999e-05,2]
[348713527,1736743843187,-500.0,9.999e-05,2]
[348713528,1736743843196,-500.0,9.999e-05,2]
[348713529,1736743843206,-500.0,9.999e-05,2]
[348713530,1736743843215,-500.0,9.999e-05,2]
[348713531,1736743843224,-500.0,9.999e-05,2]
[348713532,1736743843233,-500.0,9.999e-05,2]
[348713533,1736743843242,-500.0,9.999e-05,2]
[348713534,1736743843251,-240.28,9.999e-05,2]
[348713535,1736743843260,-728.8,9.999e-05,2]
[348713536,1736743843270,-622.96,9.999e-05,2]
[348713537,1736743843279,-500.0,9.999e-05,2]
[348713538,1736743843288,-822.14,9.999e-05,2]
[348713539,1736743843297,-585.83,9.999e-05,2]
[348713540,1736743843306,-500.0,9.999e-05,2]
[348713541,1736743843315,-500.0,9.999e-05,2]
[348713542,1736743843325,-500.0,9.999e-05,2]
[348713543,1736743843334,-734.15,9.999e-05,2]
[348713544,1736743843344,-500.0,9.999e-05,2]
[348713545,1736743843353,-500.0,9.999e-05,2]
[348713546,1736743843362,-500.0,9.999e-05,2]
[348713547,1736743843371,-500.0,9.999e-05,2]
[348713548,1736743843380,-384.72384736,9.999e-05,2]
[348713549,1736743843390,-1206.05,9.999e-05,2]
[348713550,1736743843400,-1206.05,9.999e-05,2]
[348713551,1736743843409,-1206.05,9.999e-05,2]
[348713552,1736743843418,-1206.05,9.999e-05,2]
[348713553,1736743843427,-1206.05,9.999e-05,2]
[348713554,1736743843436,-1206.05,9.999e-05,2]
[348713555,1736743843445,-1206.05,9.999e-05,2]
[348713556,1736743843454,-1206.05,9.999e-05,2]
[348713557,1736743843463,-1206.05,9.999e-05,2]
[348713558,1736743843473,-1206.05,9.999e-05,2]
[348713559,1736743843482,-1206.05,9.999e-05,2]
[348713560,1736743843491,-1206.05,9.999e-05,2]
[348713561,1736743843500,-1206.05,9.999e-05,2]
[348713562,1736743843509,-1206.05,9.999e-05,2]
[348713563,1736743843518,-1206.05,9.999e-05,2]
[348713564,1736743843527,-1206.05,9.999e-05,2]
[348713565,1736743843537,-1206.05,9.999e-05,2]
[348713566,1736743843545,-1206.05,9.999e-05,2]
[348713567,1736743843554,-1206.05,9.999e-05,2]
[348713568,1736743843564,-1206.05,9.999e-05,2]
[348713569,1736743843572,-1206.05,9.999e-05,2]
[348713570,1736743843582,-1206.05,9.999e-05,2]
[348713571,1736743843591,-1206.28064817,9.999e-05,2]
[348713572,1736743843600,-500.0,9.999e-05,2]
[348713573,1736743843609,-500.0,9.999e-05,2]
[348713574,1736743843618,-500.0,9.999e-05,2]
[348713575,1736743843627,-500.0,9.999e-05,2]
[348713576,1736743843637,-500.0,9.999e-05,2]
[348713577,1736743843646,-500.0,9.999e-05,2]
[348713578,1736743843655,-502.53819201,9.999e-05,2]
[348713579,1736743843664,-500.0,9.999e-05,2]
[348713580,1736743843673,-826.06,9.999e-05,2]
[348713581,1736743843682,-1070.95,9.999e-05,2]
[348713582,1736743843691,-1016.82,9.999e-05,2]
[348713583,1736743843700,-1996.45,9.999e-05,2]
[348713584,1736743843709,-3039.95,9.999e-05,2]
[348713585,1736743843718,-1292.24,9.999e-05,2]
[348713586,1736743843727,-663.83,9.999e-05,2]
[348713587,1736743843735,-862.88,9.999e-05,2]
[348713588,1736743843744,-549.23,9.999e-05,2]
[348713589,1736743843753,-549.23,9.999e-05,2]
[348713590,1736743843762,-1357.77,9.999e-05,2]
[348713591,1736743843771,-500.0,9.999e-05,2]
[348713592,1736743843780,-500.0,9.999e-05,2]
[348713593,1736743843791,-660.01,9.999e-05,2]
[348713594,1736743843800,-660.01,9.999e-05,2]
[348713595,1736743843809,-660.01,9.999e-05,2]
[348713596,1736743843818,-660.01,9.999e-05,2]
[348713597,1736743843829,-660.01,9.999e-05,2]
[348713598,1736743843838,-660.01,9.999e-05,2]
[348713599,1736743843846,-660.01,9.999e-05,2]
[348713600,1736743843855,-660.01,9.999e-05,2]
[348713601,1736743843865,-660.01,9.999e-05,2]
[348713602,1736743843874,-660.01,9.999e-05,2]
[348713603,1736743843884,-660.01,9.999e-05,2]
[348713604,1736743843893,-660.01,9.999e-05,2]
[348713605,1736743843902,-660.01,9.999e-05,2]
[348713606,1736743843912,-660.01,9.999e-05,2]
[348713607,1736743843922,-660.01,9.999e-05,2]
[348713608,1736743843931,-660.01,9.999e-05,2]
[348713609,1736743843940,-660.01,9.999e-05,2]
[348713610,1736743843949,-660.01,9.999e-05,2]
[348713611,1736743843959,-660.01,9.999e-05,2]
[348713612,1736743843968,-660.01,9.999e-05,2]
[348713613,1736743843978,-660.01,9.999e-05,2]
[348713614,1736743843993,-660.01,9.999e-05,2]
[348713615,1736743844003,-660.22216568,9.999e-05,2]
[348713616,1736743844012,-872.83,9.999e-05,2]
[348713617,1736743844022,-836.46,9.999e-05,2]
[348713618,1736743844033,-780.35,9.999e-05,2]
[348713619,1736743844043,-780.35,9.999e-05,2]
[348713620,1736743844052,-500.0,9.999e-05,2]
[348713621,1736743844061,-500.0,9.999e-05,2]
[348713622,1736743844073,-500.0,9.999e-05,2]
[348713623,1736743844084,-500.0,9.999e-05,2]
[348713624,1736743844094,-500.0,9.999e-05,2]
[348713625,1736743844105,-506.77923951,9.999e-05,2]
[348713626,1736743844115,-7884294.63310676,0.0001,2]
[348713627,1736743844124,-7015.1379887,0.0001,2]
[348713628,1736743844133,-331.65505043,0.0001,2]
[348713629,1736743844143,-7312.62577763,0.0001,2]